Cogmind - Beta 11 X5 @@@ ROGUE MODE // 2021.07.10 @ 17:31:17 Player: AlmondRoll Result: Destroyed by G-47 Trooper with Particle Gun Performance ------------- Evolutions (0) 0 Regions Visited (2) 400 Robots Destroyed (10) 50 Value Destroyed (178) 178 Prototype IDs (0) 0 Alien Tech Used (0) 0 Bonus (0) 0 TOTAL SCORE: 628 Bonus ------- None Cogmind --------- Core Integrity 0/250 Matter 300/300 Energy 125/125 System Corruption 0% Temperature Cool (9) Movement Rolling (90) Location -10/Mines Parts ------- > --- POWER (1) -------- Light Ion Engine > --- PROPULSION (2) --- Wheel Compact Wheel > --- UTILITY (2) ------ Large Storage Unit Weight Redist. System > --- WEAPON (2) ------- Mace Mining Claw > --- INVENTORY (15) --- Light Treads Aluminum Leg Compact Wheel Improved Terrain Scanner Beam Cannon Assault Rifle Light Assault Rifle Light Cannon Light Cannon Grenade Launcher Mace Mace Mining Claw Peak State ------------ > --- POWER ------------ Ion Engine > --- PROPULSION ------- Wheel Compact Wheel > --- UTILITY ---------- Small Storage Unit Improved Terrain Scanner > --- WEAPON ----------- Medium Laser Assault Rifle > --- INVENTORY -------- Light Ion Engine Light Treads Light Treads Wheel Compact Wheel Compact Wheel Improved Terrain Scanner Light Assault Rifle [Rating: 10] Favorites ----------- Power Ion Engine Engine Ion Engine Propulsion Compact Wheel Leg Aluminum Leg Wheel Compact Wheel Utility Large Storage Unit Device Weight Redist. System Storage Large Storage Unit Weapon Mining Claw Energy Gun Medium Laser Ballistic Gun Assault Rifle Impact Weapon Mace Slashing Weapon Mining Claw Build | -11 -10 -10 ------- Run | Scr Mat Min Slots Evolved . | . . . Power . | . . . Propulsion . | . . . Utility . | . . . Weapon . | . . . Parts Attached 12 | 3 9 . Power 1 | . 1 . Engine 1 | . 1 . Core . | . . . Reactor . | . . . Propulsion 5 | 2 3 . Treads . | . . . Leg . | . . . Wheel 5 | 2 3 . Hover . | . . . Flight . | . . . Utility 3 | 1 2 . Device 2 | 1 1 . Storage 1 | . 1 . Processor . | . . . Hackware . | . . . Protection . | . . . Artifact . | . . . Weapon 3 | . 3 . Energy Gun . | . . . Energy Cannon . | . . . Ballistic Gun . | . . . Ballistic Cannon . | . . . Launcher . | . . . Special Weapon . | . . . Impact Weapon 1 | . 1 . Slashing Weapon 2 | . 2 . Piercing Weapon . | . . . Special Melee Weapon . | . . . Unidentified Prototypes . | . . . Parts Lost 3 | . 3 . Power 1 | . 1 . Propulsion 2 | . 2 . Utility . | . . . Weapon . | . . . Highest Loss Streak 3 | . 3 . Average Slot Usage (%) 98 | . 98 100 Engine 14 | . 14 14 Wheel 26 | . 26 28 Device 14 | . 14 14 Storage 14 | . 14 14 Impact Weapon 10 | . 10 14 Slashing Weapon 16 | . 16 14 Naked Turns . | . . . Heaviest Build 30 | 15 30 27 Greatest Support 32 | 26 32 32 Greatest Overweight (x) 1 | . 1 . Average Overweight (x) . | . . . Largest Inventory Capacity 15 | 8 15 15 Average Capacity 13 | 8 14 15 Most Carried 15 | 8 15 13 Average Carried 12 | 6 12 12 Final Capacity 15 | 8 15 15 Final Carried 13 | 8 12 13 Class Distribution -------------------- 100% | Mutant Dominant Class ---------------- Mutant | -10/Materials Mutant | -10/Mines Resources | -11 -10 -10 ----------- Run | Scr Mat Min Matter Collected 342 | 241 101 . Remotely . | . . . Salvage Created 352 | 118 234 . Parts 25 | 12 13 . Haulers Intercepted 1 | . 1 . Recyclers Shooed 2 | 1 1 . Parts Field Recycled . | . . . Retrieved Matter . | . . . Parts Self-Destructed . | . . . Prevented . | . . . Kills | -11 -10 -10 ------- Run | Scr Mat Min Combat Hostiles Destroyed 6 | . 6 . Melee 6 | . 6 . Classes Destroyed 5 | 2 3 . Tunneler 2 | 2 . . Hauler 1 | . 1 . Recycler 1 | 1 . . Swarmer 2 | . 2 . Grunt 4 | . 4 . Best Kill Streak 2 | 2 2 . Combat Bots Only 2 | . 2 . Max Kills in Single Turn 1 | 1 1 . Gunslinging . | . . . Exploded . | . . . Melee 1 | . 1 . Uniques/NPCs Destroyed . | . . . Combat | -11 -10 -10 -------- Run | Scr Mat Min Damage Taken 552 | . 408 144 Core 260 | . 173 87 Absorbed by Shields . | . . . Core Remaining (%) 100 | 100 . . Volleys Fired 9 | 9 . . Largest 2 | 2 . . Hottest 70 | 70 . . Shots Fired 18 | 18 . . Gun 18 | 18 . . Cannon . | . . . Launcher . | . . . Special . | . . . Kinetic 9 | 9 . . Thermal 9 | 9 . . Explosive . | . . . Electromagnetic . | . . . Robot Hit Streak 3 | 3 . . Robot Miss Streak 4 | 4 . . Penetration Max . | . . . Secondary Targets . | . . . Shots Hit Robots 48 | 7 38 3 Core Hits 11 | 4 7 . Critical Kills . | . . . Critical Parts Destroyed . | . . . Critical Strikes . | . . . Melee Attacks 73 | . 69 4 Impact 11 | . 11 . Slashing 62 | . 58 4 Piercing . | . . . Sneak Attacks 3 | . 3 . Combat Hostiles . | . . . Follow-up Attacks 9 | . 9 . Damage Inflicted 1107 | 88 972 47 Guns 88 | 88 . . Cannons . | . . . Explosions . | . . . Melee 1019 | . 972 47 Ramming . | . . . Kinetic 63 | 63 . . Thermal 25 | 25 . . Explosive . | . . . Electromagnetic . | . . . Impact 87 | . 87 . Slashing 932 | . 885 47 Piercing . | . . . Highest Corruption . | . . . Average Corruption . | . . . Corruption Purged . | . . . Overload Shots . | . . . Overflow Damage 44 | . 44 . Projectiles . | . . . Explosions . | . . . Melee 44 | . 44 . Knockbacks . | . . . Impact . | . . . Kinetic . | . . . Secondary . | . . . Self-Inflicted Damage . | . . . Shots . | . . . Rammed . | . . . Targets Rammed . | . . . Kicked . | . . . Crushed . | . . . Highest Temperature 65 | 65 . 8 Average Temperature 26 | 27 . 8 Received Heat Transfer 246 | . 147 99 Siege Activations . | . . . Robots Corrupted . | . . . Combat Hostiles . | . . . Parts Fried . | . . . Impact Corruptions . | . . . Robots Melted . | . . . Combat Hostiles . | . . . Parts Melted . | . . . Heat Transferred 74 | 74 . . Parts Sabotaged . | . . . Parts Stolen . | . . . Parts Stripped . | . . . Power Chain Reactions . | . . . Missiles Intercepted . | . . . Alert | -11 -10 -10 ------- Run | Scr Mat Min Peak Influence 157 | 15 157 46 Initial 46 | . 9 46 Average 64 | 8 71 46 Maximum Alert Level . | . . . Low Security (%) 100 | 100 100 100 Level 1 . | . . . Level 2 . | . . . Level 3 . | . . . Level 4 . | . . . Level 5 . | . . . High Security . | . . . Max Security . | . . . Squads Dispatched 4 | . 4 . Investigation 4 | . 4 . Extermination . | . . . Reinforcement . | . . . Assault . | . . . Garrison . | . . . Intercept . | . . . Construction Impeded . | . . . Haulers Reinforced . | . . . Cargo Convoy Interrupts . | . . . Stealth | -11 -10 -10 --------- Run | Scr Mat Min Distress Signals 2 | . 2 . Communications Jammed . | . . . Distress Signals . | . . . Times Spotted 15 | . 13 2 Peak Tracking Total 4 | . 4 2 Tactical Retreats 3 | . 3 . Traps | -11 -10 -10 ------- Run | Scr Mat Min Traps Triggered 1 | . 1 . Indirectly . | . . . Trap Hack Attempts . | . . . Triggered . | . . . Disarmed . | . . . Reprogrammed . | . . . Reused . | . . . Traps Extracted . | . . . Installed . | . . . Triggered . | . . . Machines | -11 -10 -10 ---------- Run | Scr Mat Min Machines Disabled . | . . . Max in Single Turn . | . . . Machines Sabotaged . | . . . Garrisons Compromised . | . . . Overloaded Fab Kills . | . . . Fab Network Shutdowns . | . . . Hacking | -11 -10 -10 --------- Run | Scr Mat Min Machines Accessed 7 | . 7 . Terminals 7 | . 7 . Fabricators . | . . . Repair Stations . | . . . Recycling Units . | . . . Scanalyzers . | . . . Garrison Access . | . . . Total Hacks 22 | . 22 . Successful 10 | . 10 . Failed 12 | . 12 . Catastrophic 1 | . 1 . Database Lockouts . | . . . Manual 22 | . 22 . Terminals 22 | . 22 . Fabricators . | . . . Repair Stations . | . . . Recycling Units . | . . . Scanalyzers . | . . . Garrison Access . | . . . Terminal Hacks 7 | . 7 . Robot Analysis 7 | . 7 . Fabricator Hacks . | . . . Repair Station Hacks . | . . . Recycling Unit Hacks . | . . . Scanalyzer . | . . . Garrison Access Hacks . | . . . Unauthorized Hacks 3 | . 3 . Terminals 3 | . 3 . Botnet 2 | . 2 . Operators 1 | . 1 . Fabricators . | . . . Repair Stations . | . . . Recycling Units . | . . . Scanalyzers . | . . . Garrison Access . | . . . Data Cores Recovered . | . . . Used . | . . . Hacking Detections 7 | . 7 . Full Trace Events 3 | . 3 . Feedback Events . | . . . Feedback Blocked . | . . . Robot Schematics Acquired . | . . . Robots Built . | . . . Matter . | . . . Time . | . . . Total Robot Build Rating . | . . . Part Schematics Acquired . | . . . Parts Built . | . . . Matter . | . . . Time . | . . . Total Part Build Rating . | . . . Parts Repaired . | . . . Time . | . . . Parts Recycled . | . . . Recycled Matter . | . . . Retrieved Matter . | . . . Retrieved Components . | . . . Parts Scanalyzed . | . . . Part Schematics Acquired . | . . . Parts Damaged . | . . . Bothacking | -11 -10 -10 ------------ Run | Scr Mat Min Used RIF Installer . | . . . Robots Hacked . | . . . Non-combat . | . . . Combat . | . . . Robot Hacks Applied . | . . . Relay Couplers Released . | . . . Robots Rewired . | . . . Allies Hacked . | . . . Hacks Repelled . | . . . Allies | -11 -10 -10 -------- Run | Scr Mat Min Total Allies . | . . . Largest Group . | . . . Highest-Rated Group . | . . . Highest-Rated Ally . | . . . Total Orders . | . . . Ally Attacks . | . . . Total Damage . | . . . Kills . | . . . Allies Corrupted . | . . . Allies Melted . | . . . Intel | -11 -10 -10 ------- Run | Scr Mat Min Robot Analysis Total 7 | . 7 . Derelict Logs Recovered . | . . . Drone Launches . | . . . Drone Recoveries . | . . . Exploration | -11 -10 -10 ------------- Run | Scr Mat Min Turns Passed 732 | 83 634 15 Spaces Moved 466 | 32 430 4 Core . | . . . Treads . | . . . Legs 2 | 2 . . Wheels 464 | 30 430 4 Hover . | . . . Flight . | . . . Fastest Speed 90 | 90 90 90 Average Speed 91 | 91 91 90 Slowest Speed 120 | 120 105 90 Overloaded Moves . | . . . Propulsion Burnouts . | . . . Robots Hopped . | . . . Cave-ins Triggered . | . . . Exploration Rate (%) 24 | 2 68 4 Regions Visited 2 Branch Regions 1 Pre-discovered Areas . | . . . Known Exits Taken . | . . . Unknown Exits Taken 2 | 1 1 . Scrap Searched . | . . . Spaces Dug 2 | . 2 . Terrain Destroyed 2 | . 2 . Melee 2 | . 2 . Projectile . | . . . AOE . | . . . Terrain Rammed . | . . . Walls Destroyed . | . . . Machines Disabled . | . . . Actions | -11 -10 -10 --------- Run | Scr Mat Min Total 628 | 67 553 8 Wait 60 | 18 42 . Move 464 | 31 429 4 Hop . | . . . Pick Up 12 | 4 8 . Fast Attach 5 | 1 4 . Attach 5 | 2 3 . Detach 2 | . 2 . Swap 2 | . 2 . Drop 8 | 2 6 . Fire 9 | 9 . . Melee 61 | . 57 4 Ram . | . . . Kick . | . . . Crush . | . . . Escape Stasis . | . . . Rewire . | . . . Trap . | . . . Miscellaneous . | . . . Route ------- -11/Scrapyard -10/Materials (discovered 2 exits: [*Mat] / [*Min]) -10/Mines History --------- Turn | Location | Event 1 | -11/Scrapyard | Discovered new exit (range 3) 84 | -11/Scrapyard | Entered Materials 330 | -10/Materials | Discovered new exit (range 14) 334 | -10/Materials | Build established: Mutant 600 | -10/Materials | Core integrity fell below 50% 664 | -10/Materials | Discovered new exit (range 12) 672 | -10/Materials | Lost 3 parts (1p2n) 718 | -10/Materials | Entered Mines 724 | -10/Mines | Core integrity fell below 20% 733 | -10/Mines | Destroyed by G-47 Trooper with Particle Gun Last Messages --------------- Tier: 1 R-series recyclers collect used, damaged, or unregistered components for recycling and repurposing. To minimize losses during derelict incursions, like most other maintenance robots they are of relatively sturdy construction, but remain somewhat susceptible to electromagnetic damage as such weaponry is not prevalent enough to warrant specialized defenses. >>Analysis(U-05 Engineer) Downloading analysis... U-05 Engineer Tier: 1 U-class builders lay floors, assemble new machines, and reinforce and analyze the structural integrity of walls. They travel alone, but all those within a certain vicinity will work together to complete a task. 00696_ ALERT: Suspicious activity at Terminal M001. Dispatching Investigation squad. LOCATION=UNKNOWN GOAL=ESCAPE 00723_ Critical hit (Burn: +37). 00731_ G-47 Trooper Aluminum Leg ripped off. Map ----- +----------------------------------------------------+ | | | | | | | | | | | | | | | | | | | | | | | | | | | | | | | | | | | ????????????????????????????????????????????? | | ????????????????????????????????????????????? | | ????????????????????????????????????????????? | | ????????????????????????????????????????????? | | ????????????????????????????????????????????? | | ???????????#########????????????????????????? | | ???????????# #????????????????????????? | | ??????###### g ##########???????????????? | | ??????# g@ #????????? | | ???????????# ##########???????????????? | | ???????????# #????????????????????????? | | ???????????# #????????????????????????? | | ???????????### ####????????????????????????? | | ?????????????# ????????????????????????????? | | ?????????????# ????????????????????????????? | | ?????????????# ????????????????????????????? | | ?????????????# ?????????????????????????????? | | ?????????????# ?????????????????????????????? | | ?????????????# ?????????????????????????????? | | ?????????????# ?????????????????????????????? | | ?????????????#??????????????????????????????? | | ????????????????????????????????????????????? | | ????????????????????????????????????????????? | | ????????????????????????????????????????????? | | ????????????????????????????????????????????? | | ????????????????????????????????????????????? | | ????????????????????????????????????????????? | | ????????????????????????????????????????????? | | ????????????????????????????????????????????? | | ????????????????????????????????????????????? | | ????????????????????????????????????????????? | | ????????????????????????????????????????????? | | ????????????????????????????????????????????? | +----------------------------------------------------+ Best States ------------- Heat Dissipation 25 Energy Generation 10 Energy Capacity 250 Matter Stores 300 Matter Capacity 300 Sight Range 16 Terrain Scan Range 16 Terrain Scan Density 10 Additional Mass Support 6 Evasion (%) 42 Item Schematics ----------------- None Robot Schematics ------------------ None Fabricated ------------ Nothing Alien Tech Used ----------------- None Achievements -------------- None Challenges ------------ None Game ------ Seed HugeThunderImmobilizer Manual? 0 Play Time 00:07:42 Cumulative 240.8 hours Start 2021.07.10 @ 17:23:48 End 2021.07.10 @ 17:31:17 Sessions 1 Manual Loads 0 Difficulty Rogue Special Mode None Game No. 137 Rogue 137 Adventurer 0 Explorer 0 Win Type - Total 4 Types 3/0/0/1/0/0/0/0/0 Lore% 68 Gallery% 77 Achievement% 53 Wizard Run 0 Options --------- ASCII 0 Keyboard 0 Movement Numpad Keybinds 0 Fullscreen 1 Font 18/SmallcapsGlow Map View 76x50 Tactical HUD 1 Map Filters NONE Filters NONE Steam 1 RUN: 75254b9a-ff07-40b3-8f2e-b0151de176dd